bitfinex-derivatives/quotes_ETHF0:USTF0_20250905
["timestamp","ask_amount","ask_price","bid_price","bid_amount"]
[1757057703571,0.00342337,4381.1,4381.0,1.55869]
[1757057703873,0.00342337,4381.1,4381.0,1.79969]
[1757057706173,0.00342337,4381.1,4381.0,42.59969]
[1757057708668,0.4255,4382.1,4381.0,42.1889]
[1757057708870,0.7105,4382.1,4382.0,3.79]
[1757057709182,0.4255,4382.5,4382.4,1.41206]
[1757057709369,3.2078,4383.4,4382.8,0.41063]
[1757057709583,0.7105,4382.9,4382.8,1.41203]
[1757057710075,0.9958,4382.9,4382.6,0.65164]
[1757057710277,0.9958,4382.7,4382.6,0.93634]
[1757057710476,0.9958,4382.7,4382.6,1.65304]
[1757057710675,0.9958,4382.7,4382.6,4.86084]
[1757057710875,0.9958,4382.7,4382.6,1.65304]
[1757057711377,0.4255,4383.3,4382.6,0.6602]
[1757057711579,0.7105,4383.1,4383.0,0.6953]
[1757057712181,0.9958,4383.1,4383.0,0.6953]
[1757057712480,0.9958,4383.1,4383.0,0.2847]
[1757057712684,1.1665,4383.0,4382.7,0.41063]
[1757057712880,0.5703,4382.8,4382.7,0.65163]
[1757057713081,0.7105,4383.0,4382.9,0.99282]
[1757057713280,0.7105,4383.0,4382.9,1.41202]
[1757057715080,1.1665,4383.0,4382.9,0.99282]
[1757057715778,1.1665,4383.0,4382.9,1.41202]
[1757057715978,0.9958,4383.0,4382.9,1.41202]
[1757057716173,0.7105,4383.0,4382.9,1.65302]
[1757057716880,3.2078,4383.4,4383.3,0.41058]
[1757057717180,0.7105,4383.8,4383.7,0.2847]
[1757057717487,0.9958,4383.8,4383.7,1.0014]
[1757057717681,0.9958,4383.8,4383.7,0.58126972]
[1757057717987,0.9958,4383.8,4383.5,0.41055]
[1757057718173,1.0189,4383.3,4383.2,0.241]
[1757057719386,1.0189,4383.3,4383.1,0.4106]
[1757057719586,0.4384,4383.2,4383.1,0.4106]
[1757057720090,1.1928,4383.0,4382.6,0.41064]
[1757057720287,0.5805,4382.8,4382.7,0.41063]
[1757057720480,1.0189,4382.8,4382.7,0.65163]
[1757057720680,1.0189,4382.8,4382.7,0.94043]
[1757057721083,0.5805,4383.2,4383.1,0.69939]
[1757057721382,1.0189,4382.9,4382.8,0.41062]
[1757057721584,1.0189,4382.9,4382.8,1.39852]
[1757057721585,0.4384,4382.9,4382.8,1.39852]
[1757057721885,0.7207,4382.9,4382.8,1.39852]
[1757057722387,1.0189,4382.9,4382.8,1.39852]
[1757057722589,1.0189,4382.9,4382.8,0.65162]
[1757057723089,1.0189,4382.9,4382.8,0.94042]
[1757057723387,1.0189,4382.9,4382.8,0.5298]
[1757057723978,1.0189,4382.9,4382.5,44.0078]
[1757057724185,0.4384,4382.8,4382.7,0.41064]
[1757057724385,1.0189,4382.8,4382.7,0.65164]
[1757057725092,0.1739,4383.0,4382.4,0.00342337]
[1757057725093,1.1928,4382.5,4382.4,0.00342337]
[1757057725287,1.1928,4382.5,4382.4,0.29222337]
[1757057725688,0.7207,4382.5,4382.4,0.99132337]
[1757057725992,0.2823,4382.6,4382.5,0.41065]
[1757057726196,0.7207,4382.6,4382.5,1.63955]
[1757057727190,0.1739,4383.0,4382.8,0.41063]
[1757057727191,0.2823,4382.9,4382.8,0.41063]
[1757057727392,0.7207,4382.9,4382.8,4.60633]
[1757057727594,0.7207,4382.9,4382.8,4.84733]
[1757057728089,1.0189,4383.3,4383.2,0.69939]
[1757057728291,1.0189,4383.3,4383.2,0.98359]
[1757057728491,1.0189,4383.3,4383.2,1.39849]
[1757057728785,3.2078,4383.9,4383.7,0.2888]
[1757057728786,1.0189,4383.8,4383.7,0.2888]
[1757057728984,1.0189,4383.8,4383.7,0.573]
[1757057729180,0.4384,4384.3,4383.9,0.41052]
[1757057729385,1.0189,4384.3,4384.2,0.2888]
[1757057729993,0.1739,4384.0,4383.7,0.41054]
[1757057730192,0.7207,4383.8,4383.7,0.98354]
[1757057730388,1.0189,4383.8,4383.7,0.98354]
[1757057730594,1.0189,4383.8,4383.7,1.39844]
[1757057730800,1.0189,4383.8,4383.7,0.98354]
[1757057730990,1.0189,4383.8,4383.7,1.39844]
[1757057731291,1.0189,4383.8,4383.6,0.241]
[1757057731292,1.0189,4384.3,4384.2,0.2888]
[1757057731889,1.0189,4384.3,4384.0,0.41051]
[1757057732088,0.4384,4384.2,4384.1,0.4105]
[1757057732295,1.0189,4384.2,4383.9,0.41052]
[1757057732495,1.0189,4384.2,4384.1,0.69931]
[1757057733598,1.0189,4384.2,4384.1,1.39841]
[1757057733795,1.0189,4384.2,4384.1,0.98351]
[1757057734796,0.7207,4384.4,4384.3,0.82539]
[1757057734996,0.7207,4384.4,4384.3,1.39839]
[1757057735190,1.0189,4384.8,4384.7,0.69924]
[1757057735600,0.1739,4385.0,4384.4,0.241]
[1757057735601,0.7544,4384.5,4384.4,0.94027]
[1757057735798,1.1928,4384.5,4384.4,0.94027]
[1757057735993,1.1928,4384.5,4384.4,4.98347]
[1757057736195,31.482,4387.4,4385.4,0.2888]
[1757057736196,1.1928,4385.5,4385.4,0.2888]
[1757057736596,0.4384,4385.5,4385.4,0.9879]
[1757057736798,0.7207,4385.5,4385.4,0.9879]
[1757057737001,1.0189,4385.5,4385.4,0.573]
[1757057737194,0.7207,4385.5,4385.4,1.39829]
[1757057737390,0.7207,4385.5,4385.4,0.9879]
[1757057737597,1.1928,4385.5,4385.0,0.41832337]
[1757057737796,1.1928,4385.5,4385.3,0.24]
[1757057737993,3.2078,4385.7,4385.5,0.41038]
[1757057738192,1.0189,4386.3,4386.2,0.9879]
[1757057738496,0.5805,4386.3,4385.9,3.2078]
[1757057738697,0.4384,4385.9,4385.6,0.41036]
[1757057738996,1.1928,4386.0,4385.9,0.573]
[1757057739397,0.4384,4385.4,4385.0,0.41384337]
[1757057739602,0.5805,4385.2,4385.1,0.24]
[1757057739802,1.0189,4385.2,4385.0,0.00342337]
[1757057740095,4.2267,4385.2,4385.0,0.00342337]
[1757057740494,0.22804001,4385.1,4385.0,0.00342337]
[1757057740699,1.0189,4385.1,4385.0,0.00342337]
[1757057741601,5.48695,4385.1,4384.1,0.24]
[1757057741798,1.0189,4384.2,4384.1,0.24]
[1757057741997,0.4384,4384.1,4383.2,0.4149]
[1757057742202,0.4384,4385.6,4384.5,1.02616]
[1757057742502,1.0189,4385.6,4385.5,3.2078]
[1757057743505,0.7207,4385.6,4385.5,3.2078]
[1757057743700,0.4384,4385.6,4385.5,3.2078]
[1757057743906,0.4384,4385.6,4385.5,3.4488]
[1757057744206,0.1739,4386.5,4385.5,3.4488]
[1757057744207,0.8946,4386.5,4386.4,0.41029]
[1757057744405,0.6123,4386.5,4386.4,3.61809]
[1757057745295,0.6123,4386.5,4386.4,3.2078]
[1757057745493,0.6123,4386.5,4386.4,3.4488]
[1757057745694,3.3817,4387.5,4386.5,0.41028]
[1757057745903,0.1739,4386.5,4386.4,3.4488]
[1757057746102,3.3817,4387.5,4386.8,0.41025]
[1757057746408,0.4384,4386.9,4386.8,0.65125]
[1757057746710,3.3817,4387.5,4387.3,0.4102]
[1757057746711,0.4384,4387.4,4387.3,0.4102]
[1757057746900,0.4384,4387.4,4387.3,3.859]
[1757057747203,0.1739,4388.0,4387.8,0.41016]
[1757057747407,0.1739,4388.5,4387.9,3.2078]
[1757057747705,0.1739,4388.0,4387.9,3.2078]
[1757057748204,0.1684,4388.0,4387.9,3.2078]
[1757057748408,0.1739,4388.5,4387.9,3.2078]
[1757057748600,0.1739,4388.5,4387.9,3.4508]
[1757057748996,0.1684,4388.0,4387.9,3.2078]
[1757057749202,0.1684,4388.0,4387.6,0.243]
[1757057749400,0.1684,4388.0,4387.4,3.2078]
[1757057749401,0.4067,4387.9,4387.4,3.2078]
[1757057749602,0.5751,4387.5,4387.4,3.4508]
[1757057749806,0.8557,4387.5,4387.4,3.727]
[1757057750002,0.4067,4387.4,4387.0,44.0078]
[1757057750201,0.4067,4387.4,4386.5,0.41028]
[1757057750395,3.3762,4387.5,4386.6,0.244]
[1757057750600,3.3762,4388.0,4387.3,0.41021]
[1757057750807,3.3762,4388.0,4387.4,0.244]
[1757057751305,0.4067,4387.9,4387.4,0.244]
[1757057751508,0.4067,4387.9,4387.2,0.4064]
[1757057751698,0.4067,4387.9,4387.3,0.244]
[1757057751902,0.4067,4387.9,4387.2,0.4064]
[1757057752402,0.4067,4387.9,4386.8,3.6142]
[1757057752605,0.4067,4387.9,4386.9,0.244]
[1757057752897,0.4067,4387.9,4387.0,0.244]
[1757057753103,0.4067,4387.9,4386.8,4.02445]
[1757057753298,0.4067,4387.9,4386.9,0.4064]
[1757057753508,0.4067,4387.9,4387.1,0.4064]
[1757057753805,3.3762,4388.0,4387.4,3.2078]
[1757057754009,3.3762,4388.0,4387.5,0.244]
[1757057754210,3.3762,4388.0,4387.5,0.6504]
[1757057754411,3.3762,4388.0,4387.5,0.81659]
[1757057754708,0.1684,4387.5,4387.4,3.2078]
[1757057755007,0.7253,4387.5,4387.4,0.2762]
[1757057755209,1.132,4387.5,4387.4,0.5786]
[1757057755511,1.132,4387.5,4387.1,0.41023]
[1757057755709,1.132,4387.5,4387.2,0.244]
[1757057755903,0.4067,4387.4,4387.3,0.5202]
[1757057756110,0.6873,4387.4,4387.3,0.2762]
[1757057756614,0.1684,4387.0,4385.6,0.4064]
[1757057756809,2.57154174,4387.7,4385.5,0.1654]
[1757057756810,3.2078,4388.2,4387.5,0.1654]
[1757057757111,3.6145,4388.2,4388.1,0.4064]
[1757057757413,3.2078,4388.2,4388.1,0.249]
[1757057757608,0.4067,4388.1,4387.5,3.6142]
[1757057757810,0.1684,4388.0,4387.6,0.4064]
[1757057758113,0.1684,4388.0,4387.6,0.6554]
[1757057758315,0.4067,4387.9,4387.6,0.4064]
[1757057758513,0.1684,4388.0,4387.7,0.27585088]
[1757057758703,0.4067,4387.9,4387.8,0.27585088]
[1757057758906,0.1684,4388.0,4387.8,0.27585088]
[1757057758907,0.17,4388.9,4388.5,0.1654]
[1757057759108,0.17,4388.9,4388.8,0.4064]
[1757057759306,0.17,4388.9,4388.8,0.68225088]
[1757057760108,0.17,4388.9,4388.8,0.93125088]
[1757057760315,0.2684,4390.0,4388.8,0.93125088]
[1757057760316,2.47212491,4391.9,4391.7,0.4098]
[1757057760613,2.47212491,4391.9,4390.9,3.2078]
[1757057760614,2.4067,4391.9,4391.8,3.48316601]
[1757057761104,0.28517915,4391.9,4391.8,7.97685601]
[1757057761303,9.15e-06,4391.9,4391.8,3.97685601]
[1757057761506,9.15e-06,4391.9,4391.8,7.97685601]
[1757057761913,0.1684,4394.0,4391.8,7.97685601]
[1757057761914,0.4067,4393.8,4392.0,10.24418]
[1757057762210,0.4067,4393.8,4391.1,10.24626]
[1757057762211,0.1684,4393.5,4393.3,3.2078]
[1757057762415,0.4067,4393.4,4392.8,3.2078]
[1757057762714,0.4067,4393.4,4393.3,3.2078]
[1757057762916,0.4067,4393.4,4393.3,3.51527873]
[1757057763318,4.4067,4393.4,4393.3,0.30747873]
[1757057763519,4.0,4393.4,4392.3,3.2078]
[1757057763815,0.4067,4393.4,4392.4,0.29323051]
[1757057764015,0.4067,4393.4,4392.5,0.29323051]
[1757057764214,0.4067,4392.9,4392.6,0.29323051]
[1757057764408,0.6747,4392.8,4391.8,3.2078]
[1757057764608,0.5751,4392.0,4391.9,0.29302971]
[1757057765009,4.5751,4392.0,4391.9,0.29302971]
[1757057765207,4.5751,4392.0,4391.8,3.2078]
[1757057765208,0.1684,4392.0,4391.8,3.2078]
[1757057765412,0.1684,4392.0,4391.9,0.29296623]
[1757057765612,0.1684,4392.5,4391.9,3.27427797]
[1757057765919,0.5751,4393.0,4392.4,3.2078]
[1757057766115,0.4067,4393.0,4392.9,3.2078]
[1757057766317,0.4067,4393.0,4392.9,3.50076623]
[1757057766522,0.5751,4393.0,4392.9,3.50076623]
[1757057766718,4.5751,4393.0,4392.9,0.29296623]
[1757057767220,0.1684,4392.5,4392.2,3.2078]
[1757057767420,0.1684,4392.5,4391.1,0.70285]
[1757057767421,0.4067,4392.3,4391.4,3.2078]
[1757057767718,0.4067,4392.3,4390.8,2.57154174]
[1757057767719,0.1684,4392.5,4392.2,3.2078]
[1757057767915,0.269,4392.7,4392.3,3.2078]
[1757057768316,0.1684,4392.5,4392.3,3.2078]
[1757057768517,0.1197,4393.5,4392.5,0.4064]
[1757057768820,0.1197,4393.5,4393.0,3.2078]
[1757057769226,0.269,4393.4,4393.0,3.2078]
[1757057769420,0.269,4393.4,4393.0,3.6142]
[1757057769621,0.269,4393.4,4393.0,3.2078]
[1757057769821,0.1684,4393.5,4393.0,3.2078]
[1757057770020,0.4067,4393.3,4393.0,3.2078]
[1757057770222,0.4067,4393.4,4393.0,3.6142]
[1757057770420,3.93560345,4393.6,4393.0,3.2078]
[1757057770623,0.4067,4393.4,4392.4,3.2078]
[1757057770822,0.4067,4393.4,4392.2,0.40975]
[1757057771029,0.4067,4393.4,4392.1,0.40976]
[1757057771322,3.3762,4392.5,4391.9,3.2078]
[1757057771522,0.268,4392.4,4391.3,3.2078]
[1757057771928,0.4067,4391.4,4390.8,3.2078]
[1757057772122,0.268,4391.3,4391.1,0.4064]
[1757057772321,0.6747,4391.2,4390.9,0.40987]
[1757057772518,3.3762,4392.0,4390.8,3.2078]
[1757057772721,3.3762,4392.0,4390.0,3.2078]
[1757057772722,0.4067,4390.9,4390.0,3.2078]
[1757057772918,3.3762,4391.0,4390.0,3.2078]
[1757057772919,0.268,4390.8,4390.0,3.2078]
[1757057773125,3.3762,4391.0,4390.0,3.2078]
[1757057773322,0.4067,4390.4,4389.4,3.2078]
[1757057773523,0.268,4390.3,4389.9,0.40997]
[1757057773730,0.4067,4390.6,4389.9,0.40997]
[1757057774025,0.268,4390.9,4390.5,3.2078]
[1757057774228,0.268,4390.9,4390.6,0.4064]
[1757057774628,0.4067,4391.3,4390.6,0.8163]
[1757057774831,0.268,4390.9,4390.7,0.4064]
[1757057775131,3.2078,4391.5,4390.9,0.4064]
[1757057775433,0.268,4391.4,4390.5,3.2078]
[1757057775730,0.4067,4391.3,4390.5,3.2078]
[1757057775929,0.4067,4391.1,4390.5,3.2078]
[1757057776424,3.3762,4391.5,4390.6,0.4064]
[1757057776625,0.6737,4391.4,4390.6,0.4099]
[1757057776838,0.4067,4391.4,4390.5,4.02411]
[1757057777025,0.267,4391.3,4391.1,3.2078]
[1757057777330,0.5751,4392.0,4391.2,0.81625]
[1757057777525,0.267,4391.9,4391.2,0.4064]
[1757057777730,0.6737,4391.8,4391.1,3.2078]
[1757057777928,0.267,4391.8,4391.1,3.2078]
[1757057778128,0.4996,4391.7,4391.1,3.2078]
[1757057778331,0.267,4391.6,4391.1,3.2078]
[1757057778631,0.267,4391.5,4391.1,3.2078]
[1757057778831,0.4996,4391.8,4391.1,3.2078]
[1757057779034,0.267,4391.7,4391.2,0.29019477]
[1757057779336,3.2078,4392.1,4391.2,0.4839]
[1757057779532,0.72780345,4393.6,4392.6,0.4839]
[1757057779733,0.72780345,4393.6,4393.5,3.2078]
[1757057780038,0.72780345,4393.6,4392.7,0.29025963]
[1757057780039,0.99480345,4393.6,4393.0,0.4839]
[1757057780230,0.99480345,4393.6,4393.1,0.77391415]
[1757057780436,0.4996,4393.5,4393.2,0.29001415]
[1757057780738,0.267,4393.4,4392.8,3.2078]
[1757057781437,0.267,4393.4,4392.8,3.6917]
[1757057781625,0.4996,4393.5,4392.8,4.1014]
[1757057781825,0.267,4393.4,4392.8,4.1014]
[1757057782025,0.72780345,4393.6,4392.8,4.1014]
[1757057782236,0.72780345,4393.6,4393.4,0.4839]
[1757057782433,0.72780345,4393.6,4393.3,3.2078]
[1757057782627,0.72780345,4393.6,4393.5,0.4839]
[1757057782830,0.72780345,4393.6,4393.5,0.6816]
[1757057783029,0.72780345,4393.6,4393.5,0.4839]
[1757057783235,0.72780345,4393.6,4393.3,3.6917]
[1757057783436,0.4996,4393.5,4393.3,3.6917]
[1757057784342,0.72780345,4393.6,4393.4,0.4839]
[1757057784533,0.72780345,4393.6,4393.3,3.2078]
[1757057784839,0.7656,4393.5,4393.3,3.6917]
[1757057785040,0.4996,4393.5,4393.3,3.6917]
[1757057785240,0.7656,4393.5,4393.4,0.27664407]
[1757057785940,0.266,4393.5,4393.4,0.76054407]
[1757057786242,0.266,4393.5,4393.4,0.27664407]
[1757057786741,0.7656,4393.5,4393.4,0.27664407]
[1757057787141,0.7656,4393.5,4393.3,3.2078]
[1757057787345,0.4996,4393.4,4392.7,0.4839]
[1757057787541,0.4996,4393.4,4392.9,0.4839]
[1757057787837,0.72780345,4393.6,4393.1,3.6917]
[1757057788144,0.72780345,4393.6,4393.2,0.76111776]
[1757057788145,0.266,4393.3,4393.2,0.76111776]
[1757057788438,0.85040585,4393.3,4393.2,0.4839]
[1757057789243,0.84940585,4393.3,4393.2,0.4839]
[1757057789542,0.4996,4393.2,4393.1,3.2078]
[1757057789737,1.08400585,4393.2,4392.5,3.4055]
[1757057790044,0.84940585,4393.1,4393.0,0.6816]
[1757057790443,0.58440585,4393.1,4393.0,0.6816]
[1757057790645,1.08400585,4393.1,4392.5,3.4055]
[1757057790947,1.08367199,4393.0,4392.6,0.4839]
[1757057791246,0.4996,4393.0,4392.6,0.4839]
[1757057791444,0.4996,4393.0,4392.5,3.4055]
[1757057791445,0.58408167,4392.9,4392.5,3.2078]
[1757057791643,0.58408167,4392.8,4392.6,0.4839]
[1757057791842,0.58408167,4392.7,4392.6,0.4839]
[1757057792444,0.265,4392.8,4392.6,0.4839]
[1757057792945,0.00092601,4393.1,4392.6,0.4839]
[1757057793140,0.84928077,4393.0,4392.6,0.4839]
[1757057793346,0.58428077,4392.9,4392.5,3.4055]
[1757057793541,0.4996,4392.8,4392.5,3.2078]
[1757057793744,0.4661,4393.0,4392.5,3.2078]
[1757057794049,0.4996,4392.8,4392.1,0.4839]
[1757057794252,0.58440021,4392.7,4392.1,0.4839]
[1757057794449,0.00092601,4393.1,4392.1,0.4839]
[1757057794751,0.84845695,4393.0,4392.6,0.4839]
[1757057794947,0.58445695,4392.9,4392.6,0.4839]
[1757057795145,0.264,4392.9,4392.6,0.4839]
[1757057795652,0.00092601,4393.1,4392.6,0.4839]
[1757057795851,0.8484376,4393.0,4392.6,0.4839]
[1757057796049,0.00092601,4393.1,4392.6,0.4839]
[1757057796248,0.26492601,4393.1,4393.0,0.6816]
[1757057797151,0.00092601,4393.1,4393.0,0.6816]
[1757057797553,0.26392601,4393.1,4393.0,0.6816]
[1757057798853,0.00092601,4393.1,4393.0,0.6816]
[1757057799445,0.26392601,4393.1,4393.0,0.6816]
[1757057799651,0.00092601,4393.1,4393.0,0.6816]
[1757057799958,0.26392601,4393.1,4393.0,0.6816]
[1757057801055,0.26292601,4393.1,4393.0,3.8894]
[1757057801358,0.00092601,4393.1,4393.0,3.8894]
[1757057801563,0.26292601,4393.1,4393.0,3.8894]
[1757057802055,0.76252601,4393.1,4393.0,3.8894]
[1757057802660,0.26292601,4393.1,4393.0,3.8894]
[1757057804768,0.26292601,4393.1,4393.0,4.578]
[1757057805459,0.00092601,4393.1,4393.0,7.8894]
[1757057805667,0.7007,4395.0,4394.1,0.40957]
[1757057805859,0.7007,4395.0,4394.9,3.2078]
[1757057806057,0.4996,4394.9,4394.0,3.2078]
[1757057806257,0.4996,4394.4,4394.0,3.2078]
[1757057806559,0.4996,4394.8,4394.0,3.2078]
[1757057806759,0.4996,4394.8,4394.7,3.2078]
[1757057808759,0.1972,4394.5,4394.0,3.2078]
[1757057808975,0.5009,4394.4,4394.0,3.2078]
[1757057809363,0.1972,4394.5,4394.0,3.2078]
[1757057809672,0.1972,4394.5,4394.2,3.2078]
[1757057809673,0.261,4394.4,4394.2,3.2078]
[1757057809860,0.5009,4394.3,4394.2,3.2078]
[1757057810060,0.5009,4394.3,4393.4,3.2078]
[1757057810266,0.261,4394.2,4393.4,3.2078]
[1757057810576,0.6981,4393.5,4393.4,3.2078]
[1757057812066,0.6981,4393.5,4392.6,0.40972]
[1757057812067,0.9591,4393.5,4392.9,3.2078]
[1757057812470,0.261,4393.4,4392.9,3.2078]
[1757057812681,0.5009,4393.4,4392.9,3.2078]
[1757057812876,0.4582,4393.5,4392.9,3.2078]
[1757057813082,0.6981,4393.5,4392.9,3.2078]
[1757057813276,0.9591,4393.5,4392.9,3.2078]
[1757057813780,0.4582,4393.5,4392.9,3.2078]
[1757057813978,0.6981,4393.0,4392.9,3.2078]
[1757057814475,0.5009,4393.0,4392.9,3.2078]
[1757057814782,0.6981,4393.0,4392.9,3.2078]
[1757057821072,0.5009,4393.3,4392.9,3.2078]
[1757057821382,0.5009,4393.2,4392.9,3.2078]
[1757057821777,0.5208,4393.5,4392.9,3.2078]
[1757057821978,0.258,4393.4,4392.9,3.61748]
[1757057822483,0.5816,4393.4,4392.9,3.61748]
[1757057822782,0.5009,4393.3,4392.9,3.61748]
[1757057822976,0.258,4393.4,4392.9,3.61748]
[1757057823176,0.5009,4393.3,4392.9,3.2078]
[1757057823381,1.3653,4393.0,4392.9,3.2078]
[1757057823779,0.258,4393.9,4392.9,3.2078]
[1757057823987,0.5009,4393.3,4393.0,3.2078]
[1757057824281,0.1972,4393.5,4393.2,0.40965]
[1757057824481,0.5009,4393.4,4393.0,3.61748]
[1757057824680,0.5009,4393.8,4393.4,0.40964]
[1757057824882,0.258,4393.9,4393.5,3.2078]
[1757057825183,0.5009,4393.9,4393.5,3.2078]
[1757057825680,0.1972,4394.0,4393.6,0.40962]
[1757057826183,0.5009,4394.3,4393.7,0.40961]
[1757057826382,0.5009,4394.3,4394.2,3.2078]
[1757057827489,0.7579,4394.9,4394.2,3.2078]
[1757057827782,0.5009,4394.8,4394.7,3.2078]
[1757057828184,0.8245,4394.8,4394.7,3.2078]
[1757057829983,0.5009,4394.8,4394.7,3.2078]
[1757057830186,0.5009,4394.8,4394.2,0.40957]
[1757057831080,0.8245,4394.8,4394.1,3.2078]
[1757057831682,0.8245,4394.8,4394.1,3.61737]
[1757057832587,0.1972,4394.5,4394.1,3.2078]
[1757057832890,0.1972,4393.5,4393.3,3.2078]
[1757057833095,0.5009,4393.4,4393.3,3.2078]
[1757057833791,0.1972,4393.5,4393.3,3.2078]
[1757057833993,0.6981,4393.5,4393.3,3.2078]
[1757057834192,0.6981,4393.5,4393.3,3.61745]
[1757057834388,0.6981,4394.0,4393.3,3.61745]
[1757057834691,0.3236,4394.4,4393.9,3.2078]
[1757057834892,0.5009,4394.4,4393.9,3.2078]
[1757057835191,0.5208,4394.5,4393.9,3.2078]
[1757057835392,0.3236,4394.3,4393.9,3.2078]
[1757057835593,0.3236,4394.4,4393.9,3.2078]
[1757057835785,0.1972,4394.0,4393.9,3.2078]
[1757057835986,0.6981,4394.0,4393.9,3.2078]
[1757057836893,0.5009,4394.0,4393.9,3.2078]
[1757057837995,0.6981,4394.0,4393.9,3.2078]
[1757057838994,0.5075,4394.6,4393.9,7.4628]
[1757057839191,0.5075,4394.9,4394.5,3.2078]
[1757057839894,0.5148,4395.0,4394.5,3.2078]
[1757057840096,0.1972,4395.0,4394.5,3.2078]
[1757057840486,0.4492,4395.5,4394.5,3.2078]
[1757057840487,0.5075,4395.4,4394.5,3.2078]
[1757057840797,0.5075,4395.4,4395.1,0.40948]
[1757057840992,0.1972,4395.5,4395.1,0.40948]
[1757057841194,0.5075,4395.4,4395.1,0.40948]
[1757057841385,0.5075,4395.4,4395.0,3.2078]
[1757057841591,0.1972,4395.5,4395.0,3.2078]
[1757057841790,0.5075,4395.3,4395.1,0.40949]
[1757057841992,0.5075,4395.4,4395.1,0.40949]
[1757057842291,0.1972,4395.5,4395.1,0.40949]
[1757057842494,0.5148,4395.5,4395.1,0.40949]
[1757057842694,1.1532,4395.1,4395.0,3.2078]
[1757057842893,0.8251,4395.1,4395.0,3.2078]
[1757057843098,0.5075,4395.1,4395.0,3.2078]
[1757057843294,0.5075,4395.1,4395.0,3.6173]
[1757057843498,1.1532,4395.1,4395.0,3.2078]
[1757057844594,0.1929,4394.5,4394.4,3.4618]
[1757057844796,0.1972,4395.5,4394.4,3.4618]
[1757057844998,1.3504,4395.5,4395.4,3.2078]
[1757057845397,0.1929,4395.0,4394.7,3.2078]
[1757057845598,1.1532,4394.8,4394.7,3.2078]
[1757057848295,1.1532,4394.8,4394.2,3.2078]
[1757057848502,0.1929,4395.0,4394.2,3.2078]
[1757057848503,1.1532,4394.3,4394.2,3.2078]
[1757057848699,0.5075,4394.4,4394.2,3.2078]
[1757057849096,0.3176,4394.3,4394.2,3.2078]
[1757057849296,0.8251,4394.3,4394.2,3.2078]
[1757057850103,0.1929,4394.5,4394.4,0.40955]
[1757057850298,0.5075,4394.9,4394.2,3.2078]
[1757057850602,0.5075,4394.4,4394.2,3.2078]
[1757057850802,0.1929,4394.5,4394.2,3.2078]
[1757057851001,0.5075,4394.4,4394.3,0.40956]
[1757057852406,0.5105,4395.0,4394.3,0.40956]
[1757057852608,0.8251,4394.9,4394.3,0.40956]
[1757057853209,0.8251,4394.9,4394.4,0.40954]
[1757057853396,1.018,4394.5,4394.4,0.40954]
[1757057853601,0.3176,4394.4,4394.2,3.61737]
[1757057853802,0.5075,4394.3,4394.2,3.61737]
[1757057854204,1.1532,4394.3,4394.2,3.2078]
[1757057855010,0.8251,4394.3,4394.2,3.2078]
[1757057855309,0.5075,4394.3,4394.2,3.2078]
[1757057855512,0.8251,4394.3,4394.2,3.2078]
[1757057857002,1.1532,4394.3,4394.2,3.2078]
[1757057858412,0.1929,4394.0,4393.6,3.2078]
[1757057858711,1.1532,4393.7,4393.6,3.2078]
[1757057859508,0.1929,4394.0,4393.0,0.40968]
[1757057859509,0.5075,4393.1,4393.0,0.40968]
[1757057860809,0.1929,4393.5,4393.1,0.40966]
[1757057861008,0.5075,4393.4,4393.1,0.40966]
[1757057861214,0.1929,4393.5,4393.2,0.252]
[1757057861401,0.5075,4393.6,4393.4,3.61744]
[1757057861605,0.7004,4393.5,4393.4,3.2078]
[1757057862007,1.018,4393.5,4393.4,3.2078]
[1757057862207,0.7004,4393.5,4393.4,3.2078]
[1757057862611,1.018,4393.5,4393.4,3.2078]
[1757057862813,1.3461,4393.5,4393.4,3.2078]
[1757057863014,0.7004,4393.5,4393.4,3.61744]
[1757057863214,0.5075,4393.9,4393.7,0.40962]
[1757057863514,0.1929,4394.0,4393.5,0.40963]
[1757057863712,0.8251,4393.9,4393.5,0.40963]
[1757057863910,0.8251,4393.8,4393.6,0.40962]
[1757057864103,0.5075,4393.7,4393.6,0.40962]
[1757057864615,1.018,4393.5,4393.4,3.61744]
[1757057864812,1.018,4393.5,4393.4,3.2078]
[1757057865014,1.3461,4393.5,4393.4,3.2078]
[1757057866115,1.018,4393.0,4392.9,3.61748]
[1757057866317,1.3461,4393.0,4392.9,3.2078]
[1757057866913,8.1078,4393.0,4392.0,0.1927]
[1757057867119,0.9,4393.0,4392.6,0.486]
[1757057867309,0.1133,4392.9,4392.7,0.486]
[1757057867812,5.4860997,4392.8,4392.6,0.486]
[1757057868211,5.6343997,4392.8,4392.6,0.486]
[1757057868409,5.4860997,4392.8,4392.5,0.1927]
[1757057868614,5.4860997,4392.8,4392.6,0.5098]
[1757057869517,5.4860997,4392.8,4392.5,0.1927]
[1757057870116,5.4860997,4392.8,4392.6,0.5098]
[1757057870506,2.2782997,4392.8,4392.5,0.60243]
[1757057870710,2.2782997,4392.8,4392.6,0.5098]
[1757057870911,2.2782997,4392.8,4392.7,0.5098]
[1757057871722,2.4265997,4392.8,4392.6,0.5098]
[1757057872223,5.6343997,4392.8,4392.6,0.5098]
[1757057872517,0.252,4392.7,4392.6,0.5098]
[1757057872815,0.1133,4392.9,4392.7,0.5098]
[1757057874721,0.1133,4392.9,4392.5,3.4005]
[1757057874920,0.1133,4392.9,4392.5,3.81023]
[1757057875116,0.1133,4392.9,4392.6,0.5098]